bitfinex/quotes_ETHUSD_20241223
["timestamp","ask_amount","ask_price","bid_price","bid_amount"]
[1734965131477,0.1199672,3309.0,3307.7,3.02324]
[1734965131612,0.1199672,3309.0,3307.8,3.63837035]
[1734965131818,4.40595578,3310.5,3307.8,3.63837035]
[1734965131819,6.129325,3310.0,3308.2,0.60665148]
[1734965132168,0.03022524,3309.9,3308.2,0.60665148]
[1734965132313,0.31383802,3309.8,3308.2,0.60665148]
[1734965132509,3.02198,3309.1,3308.2,0.60665148]
[1734965132978,3.02162,3309.5,3308.3,0.03022033]
[1734965133119,0.7734,3309.6,3308.2,0.60665148]
[1734965133120,0.03022524,3309.6,3308.2,0.60665148]
[1734965133321,3.02171,3309.4,3308.2,0.60665148]
[1734965133577,3.02161,3309.5,3308.2,0.60665148]
[1734965133750,0.31383802,3309.8,3308.3,0.03021696]
[1734965133948,0.7734,3310.1,3308.3,3.05290696]
[1734965134261,3.02155,3309.6,3308.3,0.03021696]
[1734965134463,3.05104524,3310.4,3308.3,3.05285696]
[1734965134651,3.02143,3309.7,3308.2,0.63686582]
[1734965134856,0.606651,3310.6,3308.6,0.25]
[1734965135051,3.0208,3310.4,3309.0,3.0]
[1734965135261,3.108155,3310.2,3309.1,0.03020681]
[1734965135461,3.0219,3309.2,3308.2,0.03020856]
[1734965135661,3.0219,3309.2,3307.6,3.0535182]
[1734965135872,0.78202524,3310.1,3307.6,3.0535182]
[1734965135873,0.7518,3310.1,3308.1,0.60877094]
[1734965136177,0.7518,3310.1,3308.2,0.03021405]
[1734965136178,0.377279,3310.0,3308.2,0.03021405]
[1734965136360,3.02087,3310.3,3308.8,3.02216]
[1734965136578,3.02069,3310.5,3309.2,0.61361543]
[1734965136771,3.02039,3310.9,3309.3,0.03020697]
[1734965136980,1.0,3311.1,3309.3,0.28020697]
[1734965137134,1.0,3311.1,3309.8,3.02131]
[1734965137338,1.0,3311.1,3309.9,0.33233124]
[1734965137689,1.0,3311.1,3309.5,0.03019997]
[1734965137831,1.0,3311.1,3309.7,3.05158997]
[1734965138036,3.02044,3310.8,3309.7,0.03019997]
[1734965138283,1.0,3311.1,3309.5,3.0]
[1734965138451,1.0,3311.1,3309.5,0.60271533]
[1734965138782,3.422268,3311.0,3309.6,0.03020495]
[1734965138948,3.422268,3311.0,3309.6,3.03020495]
[1734965139283,3.02043,3310.8,3309.5,3.60271533]
[1734965139483,3.422238,3311.0,3309.5,3.60271533]
[1734965139789,3.02052,3310.7,3309.6,0.03020196]
[1734965139939,3.02052,3310.7,3309.4,3.0]
[1734965140136,0.302052,3310.7,3309.5,0.03020439]
[1734965140394,3.422308,3311.0,3309.5,0.03020439]
[1734965140395,3.02032,3310.9,3309.5,3.05177439]
[1734965140564,3.02032,3310.9,3308.8,3.0]
[1734965140565,0.03022524,3310.9,3308.8,3.0]
[1734965140766,3.02086,3310.4,3308.9,0.03020713]
[1734965140952,0.402008,3311.0,3309.2,0.59381495]
[1734965141296,1.0,3311.1,3309.3,0.03020453]
[1734965141443,3.0208,3310.4,3309.3,0.03020453]
[1734965141642,3.0208,3310.4,3309.2,0.59381495]
[1734965141643,1.0,3311.1,3309.2,0.6240225]
[1734965141844,1.0,3311.1,3309.4,0.25]
[1734965142146,1.0,3311.1,3309.8,3.02133]
[1734965142386,1.0,3311.1,3309.9,0.33233312]
[1734965142566,3.02043,3310.8,3309.5,0.03020012]
[1734965142765,3.02043,3310.8,3308.8,0.25]
[1734965142766,1.0,3311.1,3309.1,0.03020391]
[1734965142975,1.0,3311.1,3309.1,3.03020391]
[1734965143193,3.02069,3310.5,3309.1,3.03020391]
[1734965143397,3.108155,3310.7,3307.9,3.108155]
[1734965143612,1.0,3311.1,3307.9,3.108155]
[1734965143613,0.03022524,3310.4,3308.5,3.108155]
[1734965143912,1.0,3311.1,3308.5,3.108155]
[1734965143913,3.02075,3310.5,3309.5,0.60724885]
[1734965144141,1.0,3311.1,3309.5,0.60724885]
[1734965144294,1.0,3311.1,3309.6,0.03020498]
[1734965144613,1.0,3311.1,3310.3,3.02081]
[1734965144794,1.0,3311.1,3309.7,0.25]
[1734965144795,1.0,3311.1,3310.4,0.33227886]
[1734965145112,1.0,3311.1,3310.6,0.59528167]
[1734965145279,1.0,3311.1,3310.8,6.02041]
[1734965145484,1.0,3311.1,3310.8,3.0]
[1734965145807,1.0,3311.1,3310.6,0.59528167]
[1734965146012,1.0,3311.1,3310.6,0.62547928]
[1734965146208,1.0,3311.1,3310.6,0.59528167]
[1734965146412,1.0,3311.1,3309.6,3.0]
[1734965146629,1.0,3311.1,3309.8,6.02131]
[1734965146761,1.0,3311.1,3309.9,0.03020047]
[1734965146967,4.02015,3311.1,3309.9,0.03020047]
[1734965147183,1.0,3311.1,3309.9,0.03020047]
[1734965147508,3.02035,3310.9,3309.9,0.03020047]
[1734965147711,1.0,3311.1,3309.5,3.0517926]
[1734965147950,1.0,3311.1,3309.7,0.59364778]
[1734965148060,3.02052,3310.7,3309.8,0.03020292]
[1734965148270,3.02059,3310.7,3309.7,0.59364778]
[1734965148595,3.02052,3310.7,3309.7,0.59364778]
[1734965148795,3.02052,3310.7,3309.5,0.03020439]
[1734965148990,3.02052,3310.7,3309.5,0.33539383]
[1734965149322,3.05045524,3311.0,3309.5,0.30518944]
[1734965149519,1.0,3311.1,3308.6,3.05255731]
[1734965149520,0.7721,3310.9,3308.6,3.05255731]
[1734965149682,3.02101,3310.2,3308.8,3.02219]
[1734965150006,3.0208,3310.4,3308.9,0.03020851]
[1734965150205,0.11863185,3310.8,3308.9,0.03020851]
[1734965150433,3.13951185,3310.3,3309.0,3.02204]
[1734965150570,0.11863185,3310.3,3309.1,0.03020899]
[1734965150964,0.11863185,3310.2,3309.7,3.02141]
[1734965151165,0.11863185,3310.2,3309.8,0.03020301]
[1734965151413,0.11863185,3310.2,3309.4,3.02166]
[1734965151740,3.02044,3310.8,3309.5,3.35394052]
[1734965152067,0.11863185,3311.0,3309.5,0.33237052]
[1734965152269,0.11863185,3311.0,3309.7,3.02141]
[1734965152504,0.11863185,3310.7,3309.8,0.03020151]
[1734965152703,3.02062,3310.6,3309.3,3.63066745]
[1734965152967,0.11863185,3310.7,3309.4,0.03020493]
[1734965153182,3.13932185,3310.5,3309.4,0.03020493]
[1734965153383,3.02079,3310.4,3309.5,0.36391024]
[1734965153673,0.11863185,3310.4,3309.6,3.05169627]
[1734965153881,0.11863185,3310.4,3309.6,0.03020627]
[1734965154102,0.11863185,3310.4,3309.5,0.39411348]
[1734965154299,0.11863185,3310.4,3309.5,0.36391024]
[1734965154505,3.02111,3310.1,3309.5,0.36391024]
[1734965154709,3.02105,3310.1,3308.3,3.02266]
[1734965155014,3.02162,3309.5,3308.4,0.0302148]
[1734965155168,3.02133,3309.8,3308.4,0.0302148]
[1734965155370,3.02133,3309.8,3308.0,3.3337055]
[1734965155371,3.0218,3309.3,3308.5,0.59984261]
[1734965155722,3.02215,3308.9,3308.0,0.03021484]
[1734965155868,3.02215,3308.9,3306.4,3.27437]
[1734965155869,0.03022524,3308.8,3306.5,3.41696815]
[1734965156071,3.02265,3308.4,3306.9,3.02394]
[1734965156385,3.02278,3308.3,3307.0,0.03022598]
[1734965156584,3.02289,3308.1,3307.0,0.03022598]
[1734965156785,0.11863185,3309.2,3307.0,0.03022598]
[1734965156786,0.11863185,3308.3,3307.3,0.60583499]
[1734965156987,0.11863185,3308.3,3307.0,0.03022598]
[1734965157188,0.11863185,3308.3,3307.2,0.60093214]
[1734965157420,0.11863185,3308.3,3307.3,0.03022236]
[1734965157572,0.11863185,3308.2,3307.3,0.03022236]
[1734965158104,0.11863185,3308.2,3307.4,0.60867985]
[1734965158421,6.129635,3309.7,3306.5,6.44128815]
[1734965158422,3.108155,3309.2,3306.9,0.03022581]
[1734965158572,3.1425019,3308.1,3306.7,3.02416]
[1734965158921,3.1425019,3308.1,3306.8,0.03022805]
[1734965159227,0.1196019,3308.0,3307.2,3.62087986]
[1734965159453,0.1196019,3308.0,3307.3,3.05383366]
[1734965159823,3.02241,3308.7,3307.3,3.05383366]
[1734965160025,3.02241,3308.7,3307.4,0.36510735]
[1734965160318,3.02241,3308.7,3307.5,0.03022245]
[1734965160319,3.02234,3308.7,3307.5,0.03022245]
[1734965160631,3.14201342,3308.6,3307.5,0.03022277]
[1734965160797,3.02264,3308.4,3307.5,0.03022277]
[1734965161002,0.11958342,3308.6,3307.2,0.62746432]
[1734965161305,3.02353,3307.4,3306.1,0.03022592]
[1734965161551,3.02435,3306.5,3305.7,0.03023498]
[1734965161705,0.8293,3307.0,3305.6,0.30926583]
[1734965162035,3.02456,3306.3,3304.9,3.0560111]
[1734965162357,3.02462,3306.2,3304.8,0.602608]
[1734965162507,3.02577,3305.0,3304.7,1.25452045]
[1734965162707,3.02516,3305.6,3304.7,1.25452045]
[1734965163059,0.03022524,3305.7,3303.8,0.61809659]
[1734965163060,3.02508,3305.7,3303.8,0.61809659]
[1734965163241,3.02535,3305.4,3303.9,0.03025662]
[1734965163401,3.02602,3304.7,3303.8,0.61809659]
[1734965163750,3.02645,3304.2,3302.8,0.33962055]
[1734965164451,3.02645,3304.2,3302.0,0.25]
[1734965164452,3.02645,3304.2,3302.3,3.0281]
[1734965164613,3.02645,3304.2,3302.6,0.03026358]
[1734965164809,3.329095,3304.2,3304.1,1e-05]
[1734965165043,4.13422024,3304.2,3304.1,1e-05]
[1734965165253,7.24237524,3304.2,3304.1,1e-05]
[1734965165433,7.21215,3304.2,3304.1,1e-05]
[1734965165629,3.80135,3304.2,3304.1,1e-05]
[1734965165814,3.108155,3304.7,3304.1,1e-05]
[1734965165815,0.7749,3304.7,3304.1,1e-05]
[1734965166011,3.02637,3304.3,3304.1,1e-05]
[1734965166614,0.11877394,3304.2,3304.1,1e-05]
[1734965167483,3.0259,3304.8,3304.1,1e-05]
[1734965167688,3.02619,3304.5,3304.1,1e-05]
[1734965167887,3.02623,3304.5,3304.1,1e-05]
[1734965168086,3.935955,3305.2,3304.1,1e-05]
[1734965168389,3.02641,3304.3,3304.1,1e-05]
[1734965169055,3.02828,3302.3,3302.1,0.03026796]
[1734965169258,3.02838,3302.1,3300.6,1.28479773]
[1734965169458,0.806,3302.4,3300.6,1.28480779]
[1734965169790,0.03022524,3302.3,3300.7,0.31665885]
[1734965169944,0.83622524,3302.4,3300.7,0.31665885]
[1734965170148,0.83622524,3302.4,3300.4,0.19860333]
[1734965170149,0.83622524,3302.4,3300.4,0.1986006]
[1734965170487,3.108155,3302.3,3300.4,0.16831375]
[1734965170803,3.108155,3301.2,3300.4,0.16831375]
[1734965170947,3.02977,3300.6,3300.4,0.16831375]
[1734965171150,0.7717,3300.5,3298.0,0.3783879]
[1734965171485,0.03022524,3301.2,3298.0,0.3783879]
[1734965171486,3.03119,3299.1,3298.3,0.309565]
[1734965171785,0.8227,3300.1,3298.0,0.40870084]
[1734965171996,3.03039,3299.9,3298.0,0.40870084]
[1734965172191,3.03115,3299.1,3298.0,0.3783879]
[1734965172398,0.03022524,3299.7,3298.0,0.3783879]
[1734965172686,0.8227,3300.6,3298.4,0.60713634]
[1734965172892,3.85246,3300.6,3298.6,3.03157]
[1734965173058,3.85246,3300.6,3298.4,0.60713634]
[1734965173059,3.02996,3300.4,3298.7,3.36796211]
[1734965173259,3.03004,3300.3,3298.8,3.03135]
[1734965173463,3.108155,3300.1,3298.7,0.35060728]
[1734965173660,0.03022524,3300.0,3298.9,0.0443257]
[1734965173895,3.108155,3300.1,3298.0,0.40869693]
[1734965174081,0.03022524,3300.5,3298.0,0.40869693]
[1734965174281,3.06015524,3300.4,3298.1,0.04470293]
[1734965174459,3.03065,3299.7,3298.1,3.07673293]
[1734965174790,3.03068,3299.6,3298.2,0.3788535]
[1734965174991,3.02984,3300.5,3298.6,3.03157]
[1734965175154,3.03061,3299.7,3298.3,0.04976887]
[1734965175343,3.03061,3299.7,3298.2,3.4107535]
[1734965175344,3.03061,3299.7,3298.6,0.04960972]
[1734965175550,3.03033,3300.0,3298.2,0.3788535]
[1734965175751,3.108155,3300.1,3298.6,0.04960972]
[1734965175966,3.06052524,3300.0,3298.3,0.04976887]
[1734965176145,3.03039,3299.9,3298.0,0.3783879]
[1734965176351,3.03076,3299.5,3298.4,0.04971581]
[1734965176705,3.03062,3299.7,3298.1,0.03031566]
[1734965176847,0.8167,3299.8,3298.1,0.03031566]
[1734965177053,3.0,3299.5,3298.2,0.04982192]
[1734965177347,3.03177,3298.4,3298.0,0.3783879]
[1734965177591,3.03076,3299.5,3298.0,0.3783879]
[1734965177746,3.03114,3299.1,3298.0,0.3783879]
[1734965177952,3.03085,3299.4,3298.0,0.3783879]
[1734965178156,0.03022524,3299.3,3298.1,0.03279827]
[1734965178355,0.61692302,3299.4,3298.0,0.3783879]
[1734965178658,0.03022524,3299.5,3298.0,0.3783879]
[1734965178853,3.03188,3298.3,3298.1,0.03325255]
[1734965179054,3.03131,3299.0,3298.1,0.03325255]
[1734965179401,4.320963,3300.6,3298.1,0.03031425]
[1734965179717,4.320963,3300.6,3298.0,0.3783879]
[1734965179718,3.03112,3299.2,3298.0,0.3783879]
[1734965179854,3.85092,3299.0,3298.0,0.3783879]
[1734965180055,0.8197,3299.0,3298.0,0.3783879]
[1734965180366,0.84992524,3299.0,3298.0,0.3783879]
[1734965180564,3.03161,3298.6,3298.0,0.3783879]
[1734965180897,0.84992524,3299.0,3298.0,0.3783879]
[1734965181109,0.42611922,3298.9,3298.0,0.3783879]
[1734965181258,3.03168,3298.5,3298.0,0.3783879]
[1734965181587,3.03204,3298.1,3298.0,0.3783879]
[1734965181753,3.03189,3298.3,3298.0,0.3783879]
[1734965181955,0.03022524,3298.6,3298.0,0.3783879]
[1734965182286,3.877055,3298.1,3298.0,7.9e-06]
[1734965182481,3.90728024,3298.1,3298.0,7.9e-06]
[1734965182686,4.60120426,3298.1,3298.0,7.9e-06]
[1734965183052,3.108155,3297.2,3295.4,0.03033216]
[1734965183254,3.03409,3295.9,3294.8,0.1683]
[1734965183455,3.03437,3295.6,3294.1,3.03566]
[1734965183726,3.03437,3295.6,3293.9,0.03035049]
[1734965184005,3.03437,3295.6,3294.2,3.03562]
[1734965184151,0.03022524,3296.1,3294.4,0.1683]
[1734965184557,3.03407,3295.9,3294.6,3.03525]
[1734965184866,3.03416,3295.8,3294.4,0.1683]
[1734965185069,0.03022524,3295.8,3294.7,0.03727886]
[1734965185272,3.03453,3295.4,3294.5,0.0373562]
[1734965185469,3.108155,3296.2,3294.4,0.1683]
[1734965185726,0.64441174,3296.1,3294.6,0.03731753]
[1734965185930,0.64441174,3296.1,3294.9,3.03497]
[1734965185931,3.03389,3296.1,3294.9,3.03497]
[1734965186247,0.7729,3297.1,3295.5,0.1683]
[1734965186466,0.03022524,3297.0,3295.5,0.1683]
[1734965186617,0.61433384,3297.9,3295.5,0.1683]
[1734965186618,1.38723384,3297.9,3296.0,3.03389]
[1734965186939,0.80312524,3297.9,3296.3,0.1683]
[1734965187243,3.108155,3297.7,3296.4,0.02844172]
[1734965187392,0.03022524,3297.6,3296.4,0.02844172]
[1734965187740,0.03022524,3297.6,3295.8,0.1683]
[1734965187923,3.03351,3296.6,3295.4,3.03452]
[1734965188129,0.03022524,3296.5,3295.5,0.320282]
[1734965188438,0.03022524,3296.4,3295.5,0.02869675]
[1734965188622,3.06389524,3296.4,3295.5,0.02869675]
[1734965188841,3.03367,3296.4,3295.3,0.1683]
[1734965189009,3.03352,3296.5,3295.6,0.02989709]
[1734965189209,0.03022524,3296.6,3295.4,0.02995378]
[1734965189417,3.80603,3297.0,3295.3,0.1683]
[1734965189418,3.03331,3296.8,3295.7,0.03012696]
[1734965189611,0.7729,3297.0,3295.3,0.1683]
[1734965189798,0.25,3298.2,3294.8,3.0]
[1734965189799,3.03214,3298.0,3296.8,3.03322]
[1734965190035,0.381144,3298.0,3296.8,3.0332]
[1734965190201,0.381144,3298.0,3296.9,0.0297747]
[1734965190397,0.03022524,3298.1,3296.9,0.0297747]
[1734965190614,3.03223,3297.9,3296.9,0.0297747]
[1734965190849,3.03223,3297.9,3296.8,3.03321]
[1734965191048,0.7793,3298.2,3297.0,0.02961727]
[1734965191213,3.8045,3298.8,3297.2,3.03287]
[1734965191413,3.8045,3298.8,3297.4,3.20099]
[1734965191414,0.7731,3298.8,3297.4,3.20099]
[1734965191617,3.8045,3298.8,3297.7,3.03241]
[1734965191951,0.7731,3298.8,3297.8,0.02889906]
[1734965192248,0.7731,3298.8,3297.1,3.0329]
[1734965192249,3.13838024,3298.7,3296.9,0.1683]
[1734965192545,0.39114802,3298.6,3296.9,0.1683]
[1734965192760,3.03158,3298.6,3297.4,3.03266]
[1734965192966,0.7731,3298.8,3297.0,0.02891665]
[1734965193109,0.03022524,3298.7,3297.5,0.02876894]
[1734965193300,3.03173,3298.5,3296.9,0.1683]
[1734965193648,0.03022524,3298.7,3297.0,0.0309558]
[1734965193848,0.7731,3298.8,3297.0,0.06128039]
[1734965194014,0.303095,3299.2,3298.0,3.03212]
[1734965194224,3.03113,3299.1,3297.9,3.03219]
[1734965194402,0.7537,3299.3,3298.4,3.0317]
[1734965194620,0.8213,3299.8,3298.6,3.0315]
[1734965195059,0.8213,3299.8,3298.7,0.03687295]
[1734965195216,0.8213,3299.8,3298.3,0.1683]
[1734965195437,3.0306,3299.7,3298.5,3.03165]
[1734965195780,0.03022524,3299.6,3298.4,0.03698869]
[1734965195920,0.03022524,3299.6,3298.6,0.0402618]
[1734965196116,3.03102,3299.3,3297.8,0.1683]
[1734965196335,3.03131,3298.9,3297.9,0.03684662]
[1734965196537,0.33332724,3299.2,3297.8,0.1683]
[1734965196881,3.03131,3298.9,3297.9,0.04053128]
[1734965197177,6.959965,3299.8,3298.1,3.03203]
[1734965197373,0.03022524,3299.7,3298.1,3.03203]
[1734965197667,0.8213,3299.8,3298.2,0.37392241]
[1734965197870,3.03077,3299.5,3298.2,0.34360693]
[1734965198068,0.03022524,3299.4,3298.2,0.04040393]
[1734965198288,3.06112524,3299.4,3297.8,3.20053]
[1734965198452,3.03157,3298.7,3298.3,0.04036148]
[1734965198659,0.03022524,3298.6,3297.8,0.1683]
[1734965198822,0.11783093,3298.6,3297.8,0.1683]
[1734965199023,0.11783093,3298.6,3298.4,3.03177]
[1734965199321,0.11783093,3298.6,3298.5,0.0402766]
[1734965199534,3.14879093,3299.3,3297.8,3.20061]
[1734965199827,0.11783093,3299.3,3298.2,3.03192]
[1734965200056,0.11783093,3299.3,3298.3,0.0303144]
[1734965200219,0.11783093,3299.3,3298.3,0.04484609]
[1734965200427,0.11783093,3299.3,3297.9,3.320061]
[1734965200428,0.11783093,3299.3,3298.2,3.03187]
[1734965200671,0.03022524,3299.2,3298.4,0.04479893]
[1734965200836,3.03168,3298.5,3298.3,0.04484609]
[1734965201021,3.03158,3298.7,3297.8,0.1683]
[1734965201369,0.30618052,3298.7,3297.9,0.04053128]
[1734965201568,3.03214,3298.0,3297.9,0.04053128]
[1734965201777,0.7566,3298.0,3296.8,0.1683]
[1734965201941,3.108155,3298.3,3297.0,3.03301]
[1734965202327,0.11783093,3298.2,3297.1,3.03289]
[1734965202637,0.11783093,3298.2,3296.9,0.03032335]
[1734965202832,3.03223,3297.9,3295.9,3.03403]
[1734965203164,0.03022524,3297.8,3295.6,0.03033244]
[1734965203375,3.03269,3297.4,3296.3,3.202]
[1734965203531,3.06291524,3297.4,3296.3,3.202]
[1734965203729,0.11783093,3297.7,3296.3,0.4885]
[1734965203929,3.03261,3297.5,3296.4,3.03361]
[1734965204130,0.11783093,3297.7,3296.3,0.1683]
[1734965204330,0.11783093,3297.7,3296.3,3.202]
[1734965204624,0.11783093,3297.4,3297.0,3.03304]
[1734965204876,0.11783093,3297.4,3297.0,3.03302]
[1734965205076,3.18018617,3298.1,3296.8,3.0332]
[1734965205385,3.18018617,3298.1,3296.5,0.1683]
[1734965205386,0.8027,3297.9,3296.5,0.1683]
[1734965205531,0.03022524,3297.8,3296.6,3.0334]
[1734965205727,3.83495,3297.9,3296.7,3.03333]
[1734965205932,0.11783093,3298.0,3296.5,0.1683]
[1734965206191,0.11783093,3297.8,3296.7,0.1683]
[1734965206386,3.03253,3297.6,3296.7,0.1683]
[1734965206682,0.11783093,3297.8,3297.2,3.0328]
[1734965206850,0.11783093,3297.5,3297.0,3.03301]
[1734965207048,0.11783093,3297.5,3296.8,3.03323]
[1734965207239,0.11783093,3297.5,3296.7,0.1683]
[1734965207240,0.11783093,3297.5,3296.9,0.320153]
[1734965207579,0.11783093,3297.8,3297.0,3.03297]
[1734965208038,3.03241,3297.7,3296.7,0.1683]
[1734965208234,0.11783093,3297.8,3296.7,0.1683]
[1734965208235,0.03022524,3297.8,3296.7,0.1683]
[1734965208444,3.03233,3297.8,3296.7,3.20157]
[1734965208642,1.21375,3297.7,3296.7,0.1683]
[1734965208989,1.36180617,3297.7,3296.7,0.1683]
[1734965209153,4.36401093,3297.7,3296.7,0.1683]
[1734965209357,3.03299,3297.1,3295.9,3.03404]
[1734965209716,0.03022524,3297.0,3295.7,3.20253]
[1734965209989,0.03022524,3297.4,3295.7,0.1683]
[1734965210160,3.03335,3296.7,3295.7,0.1683]
[1734965210487,3.85223,3296.6,3295.5,3.03442]
[1734965210686,0.8188,3296.6,3295.5,3.03442]
[1734965210839,3.85227,3296.6,3295.2,0.1683]
[1734965211043,3.0338,3296.2,3295.2,0.1683]
[1734965211290,0.41545224,3296.5,3295.2,0.1683]
[1734965211602,0.41545224,3296.5,3293.8,0.1683068]
[1734965211603,3.86667,3295.9,3293.8,0.1683068]
[1734965211891,0.03022524,3295.8,3295.3,0.03682786]
[1734965212189,0.03022524,3295.8,3293.8,0.1683068]
[1734965212190,3.03547,3294.4,3293.8,0.1683068]
[1734965212339,3.03531,3294.6,3293.8,0.1683068]
[1734965212535,0.805,3295.3,3293.8,0.1683068]
[1734965212536,0.383971,3295.1,3293.8,0.1683068]
[1734965212746,0.03022524,3295.1,3293.9,0.0374953]
[1734965212940,3.03551,3294.4,3293.8,0.1683068]
[1734965213143,0.03022524,3294.4,3293.8,0.1683068]
[1734965213489,0.7609,3294.3,3293.9,0.03437069]
[1734965213677,3.79644,3294.3,3293.9,0.03437069]
[1734965213873,0.03022524,3294.2,3293.8,0.1683068]
[1734965214291,0.8791522,3294.3,3293.8,0.1683068]
[1734965214493,0.1182522,3294.1,3293.8,0.1683068]
[1734965214798,0.1182522,3294.1,3293.9,0.03437069]
[1734965214998,0.1182522,3294.7,3293.9,3.07027069]
[1734965215145,0.1182522,3294.7,3293.9,0.03437069]
[1734965215347,0.79872524,3294.6,3293.9,0.03437069]
[1734965215551,3.03546,3294.4,3293.8,0.1683068]
[1734965215776,0.03022524,3294.3,3293.8,0.1683068]
[1734965215987,3.03591,3293.9,3293.8,0.1683068]
[1734965216193,3.06613524,3293.9,3293.8,0.1683068]
[1734965216515,0.8867522,3294.2,3293.8,0.1683068]
[1734965216835,0.7685,3293.5,3292.2,0.0303659]
[1734965217122,0.7685,3292.4,3290.6,1.88178068]
[1734965217303,3.03763,3292.1,3290.7,6.77385]
[1734965217472,3.03763,3292.1,3290.7,3.735]
[1734965217665,3.06788524,3292.0,3290.7,3.735]
[1734965217868,0.8281,3293.0,3291.6,0.3366]
[1734965218114,0.03022524,3292.9,3291.6,0.3366]
[1734965218721,0.8281,3293.5,3291.6,0.3366]
[1734965218862,3.8644,3293.5,3292.1,3.03751]
[1734965219063,0.11739355,3293.4,3292.2,0.303751]
[1734965219293,0.11739355,3293.4,3292.0,0.3366]
[1734965219682,3.03665,3293.1,3292.0,0.3366]
[1734965220020,3.03643,3293.4,3292.1,3.03756]
[1734965220221,3.03527,3294.6,3292.0,0.3366]
[1734965220222,0.03022524,3293.8,3292.0,0.3366]
[1734965220372,0.03022524,3293.7,3292.0,0.3366]
[1734965220573,3.0362,3293.6,3292.3,3.0373]
[1734965220771,3.03548,3294.4,3292.5,0.3366]
[1734965221013,3.03591,3293.9,3292.1,3.37417]
[1734965221173,0.03022524,3294.2,3292.2,0.03036665]
[1734965221365,1.23533209,3294.9,3292.6,3.0]
[1734965221366,0.7621,3294.8,3292.6,3.0]
[1734965221573,3.03573,3294.1,3292.9,3.03682]
[1734965221800,1.23533209,3295.1,3293.2,0.3366]
[1734965221998,3.03511,3294.8,3294.0,0.3366]
[1734965222201,0.7621,3294.6,3293.4,0.3366]
[1734965222717,0.7621,3294.8,3293.4,3.37296]
[1734965222930,0.7621,3294.8,3293.5,0.337296]
[1734965223215,1.23533209,3295.1,3293.5,0.337296]
[1734965223216,3.82702524,3295.3,3294.0,3.03577]
[1734965223370,3.03389,3296.1,3294.1,3.37233]
[1734965223587,3.03461,3295.4,3294.1,0.3366]
[1734965223787,0.79232524,3296.0,3294.1,3.3366]
[1734965223788,0.7621,3296.0,3294.1,3.3366]
[1734965223991,0.8219,3296.5,3294.8,0.3366]
[1734965224202,3.85543,3296.5,3295.1,3.03472]
[1734965224524,3.0337,3296.3,3294.8,0.3366]
[1734965224720,3.03433,3295.7,3294.8,0.3366]
[1734965224921,3.03444,3295.5,3294.8,0.3366]
[1734965225447,0.8219,3296.5,3294.8,0.3366]
[1734965225750,0.03022524,3296.4,3294.8,0.3366]
[1734965226031,0.8219,3296.5,3295.3,3.0346]
[1734965226237,0.03022524,3296.4,3295.4,0.30346]
[1734965226436,3.03316,3296.9,3294.9,3.0]
[1734965226437,3.03342,3296.7,3295.3,3.03457]
[1734965226639,3.03342,3296.7,3294.9,3.03034014]
[1734965226640,3.03344,3296.6,3294.9,3.0]
[1734965226851,3.03361,3296.4,3295.0,3.03485]
[1734965227011,3.03361,3296.4,3294.8,3.36694007]
[1734965227352,0.03022524,3296.8,3294.8,3.36694007]
[1734965227537,3.03375,3296.3,3294.9,0.33669401]
[1734965227746,3.03375,3296.3,3294.8,0.3366]
[1734965227927,0.03022524,3296.6,3294.8,0.3366]
[1734965228094,3.03341,3296.7,3294.9,3.03034083]
[1734965228297,0.8279,3297.0,3295.1,0.3366]
[1734965228495,0.8226,3297.6,3296.3,3.03367]
[1734965228700,0.8226,3297.6,3296.3,0.337027]
[1734965228931,3.03269,3297.4,3296.2,0.3366]
[1734965229243,0.8226,3297.6,3296.2,0.3366]
[1734965229451,0.03022524,3297.5,3296.3,3.03365]
[1734965229747,3.06284524,3297.5,3296.2,0.3366]
[1734965229926,0.8226,3297.6,3296.2,0.3366]
[1734965230134,0.03022524,3297.5,3296.4,3.0336]
[1734965230299,0.03022524,3297.5,3296.4,3.37062]
[1734965230502,0.8117,3298.1,3296.6,3.03342]
[1734965230503,3.03231,3297.9,3296.6,3.03342]
[1734965230744,0.03022524,3297.8,3296.4,0.33702]
[1734965231045,0.03022524,3297.8,3296.2,0.3366]
[1734965231265,0.8117,3296.7,3295.5,0.3366]
[1734965231571,3.03398,3296.0,3295.2,0.60661893]
[1734965231770,0.8117,3296.7,3294.8,0.03034435]
[1734965231922,0.8117,3296.7,3294.6,0.3366]
[1734965231923,0.03022524,3296.6,3295.0,3.03484]
[1734965232119,3.03401,3296.0,3294.7,3.03511]
[1734965232417,0.03022524,3296.4,3294.6,0.3366]
[1734965232623,3.03408,3295.9,3294.7,3.03517]
[1734965232821,3.03444,3295.5,3294.8,0.337177]
[1734965233048,0.03022524,3295.8,3294.6,0.3366]
[1734965233049,3.03361,3296.4,3294.6,0.3366]
[1734965233249,3.03469,3295.3,3294.6,0.3366]
[1734965233451,3.03405,3296.0,3294.6,0.3366]
[1734965233691,3.03517,3294.8,3294.2,0.3366]
[1734965233836,0.03022524,3295.9,3294.2,0.3366]
[1734965233837,3.03442,3295.6,3294.2,0.3366]
[1734965234037,3.03454,3295.4,3294.2,3.37223]
[1734965234249,3.03467,3295.3,3294.2,0.3366]
[1734965234437,3.03443,3295.6,3294.4,3.03536]
[1734965234664,0.03022524,3295.5,3294.2,0.3366]
[1734965234902,3.03422,3295.8,3294.5,3.03534]
[1734965235067,1.214365,3296.6,3295.5,3.0344]
[1734965235238,1.214365,3296.6,3295.6,0.3366]
[1734965235434,0.03022524,3296.5,3295.6,0.3366]
[1734965235676,0.03022524,3296.5,3295.0,3.0]
[1734965235853,0.03022524,3296.5,3294.7,0.3366]
[1734965236157,0.03022524,3296.5,3294.9,3.0]
[1734965236352,0.03022524,3296.5,3294.8,0.3748289]
[1734965236551,3.03398,3296.0,3294.8,3.4099089]
[1734965236884,3.03398,3296.0,3294.8,3.03508]
[1734965238162,3.03398,3296.0,3294.9,3.03497]
[1734965238915,1.214321,3296.7,3295.7,3.03416]
[1734965239098,3.03322,3296.9,3295.3,3.06495526]